fUST/lending_fUST_20251024
["ID","MTS","AMOUNT","RATE_DAILY","PERIOD"]
[392187640,1761246632275,-500.0,0.00020973,2]
[392187642,1761246632290,-167.6068808,0.0002098,10]
[392187671,1761246632653,-607.5731192,0.0002098,10]
[392187674,1761246632667,-1862.99199258,0.00020984,2]
[392187675,1761246632681,-164.19369065,0.00020989,2]
[392187678,1761246632696,-404.39560665,0.00020989,2]
[392187680,1761246632708,-172.28973656,0.0002099,2]
[392187698,1761246633031,-99827.71026344,0.0002099,2]
[392187699,1761246633044,-460.89,0.00021172,2]
[392187700,1761246633060,-1862.99199258,0.00021284,2]
[392187701,1761246633072,-246.05268841,0.00021318,2]
[392187702,1761246633085,-250.0,0.00021347,2]
[392187704,1761246633098,-1862.99199258,0.00021415,2]
[392187705,1761246633110,-410.21081078,0.00021443,2]
[392187707,1761246633124,-738.3794594,0.00021443,2]
[392187709,1761246633136,-1312.67459448,0.00021443,2]
[392187711,1761246633148,-5000.0,0.00021483,7]
[392187714,1761246633162,-500.0,0.00021521,2]
[392187716,1761246633176,-1000.0,0.00021521,2]
[392187718,1761246633188,-1000.0,0.00021521,2]
[392187720,1761246633202,-1000.0,0.00021521,2]
[392187722,1761246633215,-1000.0,0.00021521,2]
[392187724,1761246633227,-1000.0,0.00021521,2]
[392187726,1761246633240,-574.37128432,0.00021673,2]
[392187728,1761246633252,-500.0,0.00021673,2]
[392187729,1761246633265,-500.69370111,0.00021673,2]
[392187730,1761246633278,-500.0,0.00021673,2]
[392187731,1761246633290,-500.0,0.00021673,2]
[392187732,1761246633303,-240.83846751,0.00021673,2]
[392187733,1761246633316,-500.0,0.00021673,2]
[392187734,1761246633329,-500.0,0.00021673,2]
[392187735,1761246633345,-500.0,0.00021673,2]
[392187736,1761246633357,-500.0,0.00021673,2]
[392187737,1761246633375,-514.14811822,0.00021673,2]
[392187738,1761246633388,-500.0,0.00021673,2]
[392187739,1761246633402,-500.0,0.00021673,2]
[392187740,1761246633414,-500.0,0.00021673,2]
[392187741,1761246633425,-500.0,0.00021673,2]
[392187742,1761246633564,-500.0,0.00021673,2]
[392187743,1761246633576,-500.0,0.00021673,2]
[392187744,1761246633586,-500.0,0.00021673,2]
[392187745,1761246633597,-500.0,0.00021673,2]
[392187746,1761246633607,-351.78,0.0002169,3]
[392187747,1761246633617,-351.78,0.0002169,3]
[392187748,1761246633628,-324.97131121,0.0002169,2]
[392187749,1761246633639,-500.0,0.00021699,2]
[392187750,1761246633650,-3028.15512975,0.00021699,2]
[392187751,1761246633661,-19266.35997588,0.00021699,2]
[392187752,1761246633672,-24598.83079981,0.000217,2]
[392187753,1761246634374,150.0,0.00017354,30]
[392187754,1761246634805,150.0,0.0001818,30]
[392187755,1761246635231,197.53,0.00019006,30]
[392187756,1761246635644,263.37,0.00019833,30]
[392187757,1761246635923,-1340.28,0.0002098,10]
[392187758,1761246635954,-500.0,0.00020989,2]
[392187759,1761246635989,-500.0,0.00020989,2]
[392187760,1761246636022,-500.0,0.00020989,2]
[392187761,1761246636055,-500.0,0.00020989,2]
[392187762,1761246636090,-500.0,0.00020989,2]
[392187763,1761246636120,-500.0,0.00020989,2]
[392187764,1761246636150,-500.0,0.00020989,2]
[392187765,1761246636295,329.21,0.00020659,30]
[392187807,1761246638077,-372.16481839,0.00020989,2]
[392187809,1761246638091,-260.5370628,0.00020989,2]
[392187810,1761246638104,-500.0,0.00020989,2]
[392187811,1761246638115,-500.0,0.00020989,2]
[392187813,1761246638127,-500.0,0.00020989,2]
[392187815,1761246638137,-500.0,0.00020989,2]
[392187816,1761246638149,-500.0,0.00020989,2]
[392187817,1761246638161,-500.0,0.00020989,2]
[392187818,1761246638173,-500.0,0.00020989,2]
[392187819,1761246638185,-530.85279322,0.00020989,2]
[392187820,1761246638196,-500.0,0.00020989,2]
[392187821,1761246638208,-500.0,0.00020989,2]
[392187822,1761246638218,-500.0,0.00020989,2]
[392187823,1761246638228,-200.0,0.00020989,2]
[392187824,1761246638239,-500.0,0.00020989,2]
[392187825,1761246638250,-500.0,0.00020989,2]
[392187826,1761246638263,-416.13420126,0.00020989,2]
[392187827,1761246638274,-500.0,0.00020989,2]
[392187828,1761246638285,-500.0,0.00020989,2]
[392187829,1761246638298,-500.0,0.00020989,2]
[392187830,1761246638309,-374.14108577,0.00020989,2]
[392187831,1761246638321,-500.0,0.00020989,2]
[392187832,1761246638332,-500.0,0.00020989,2]
[392187833,1761246638344,-500.0,0.00020989,2]
[392187834,1761246638355,-292.0017288,0.00020989,2]
[392187835,1761246638367,-500.0,0.00020989,2]
[392187836,1761246638378,-500.0,0.00020989,2]
[392187837,1761246638391,-500.0,0.00020989,2]
[392187838,1761246638402,-500.0,0.00020989,2]
[392187839,1761246638412,-500.0,0.00020989,2]
[392187840,1761246638423,-500.0,0.00020989,2]
[392187841,1761246638433,-500.0,0.00020989,2]
[392187842,1761246638443,-282.62484687,0.00020989,2]
[392187843,1761246638460,-217.37515313,0.00020989,2]
[392187844,1761246638470,-395.05,0.00021486,30]
[392187845,1761246638480,-246.05268841,0.00021699,2]
[392187846,1761246638490,-6755.98800017,0.000217,2]
[392187847,1761246638504,-4063.4245101,0.000217,2]
[392187848,1761246638516,-8839.9999997,0.000217,2]
[392187849,1761246639070,-4478.56327395,0.000217,2]
[392187850,1761246639082,-3624.52440731,0.000217,2]
[392187897,1761246640064,-110648.2411972,0.000217,2]
[392187899,1761246640076,-7456.99890206,0.000217,2]
[392187901,1761246640086,-437.70007184,0.000217,2]
[392187903,1761246640098,-647.82430816,0.000217,2]
[392187906,1761246640116,-7496.85882487,0.000217,2]
[392188171,1761246642856,-15445.83169024,0.00020779,2]
[392188173,1761246642866,-34555.59596163,0.000217,2]
[392188184,1761246642963,-569.8539678,0.0002169,10]
[392188186,1761246642975,-547.0460322,0.0002169,10]
[392188188,1761246642987,-240.15793029,0.000217,2]
[392188520,1761246646159,-1322.668,0.000217,2]
[392188587,1761246646865,-4829.22492376,0.000217,2]
[392190144,1761246663219,-3374.14366268,0.00020779,2]
[392190147,1761246663246,-300.0,0.00020988,2]
[392190150,1761246663274,-500.0,0.00020989,2]
[392190153,1761246663303,-500.0,0.00020989,2]
[392190156,1761246663330,-151.72267464,0.00020989,2]
[392190268,1761246669033,-196.0,0.00016,2]
[392190269,1761246669062,-196.0,0.0001705,2]
[392190270,1761246669195,-286.3519232,0.000181,2]
[392190271,1761246669225,-3374.14366268,0.00020571,2]
[392190272,1761246669254,-348.27732536,0.00020989,2]
[392190273,1761246669283,-500.0,0.00020989,2]
[392190274,1761246675324,-500.0,0.00020989,2]
[392190275,1761246675351,-213.79345397,0.00020989,2]
[392190276,1761246675377,-160.35020871,0.00020989,2]
[392190277,1761246675406,-500.0,0.00020989,2]
[392190278,1761246675434,-500.0,0.00020989,2]
[392190279,1761246675462,-500.0,0.00020989,2]
[392190280,1761246675491,-500.0,0.00020989,2]
[392190281,1761246675519,-500.0,0.00020989,2]
[392190282,1761246675548,-413.33650595,0.00020989,2]
[392190283,1761246675577,-500.0,0.00020989,2]
[392190284,1761246675605,-500.0,0.00020989,2]
[392190285,1761246712934,150.0,0.00017654,30]
[392190286,1761246713366,170.7,0.00018495,30]
[392190287,1761246713877,256.05,0.00019336,30]
[392190288,1761246714173,341.4,0.00020176,30]
[392190289,1761246714575,426.75,0.00021017,30]
[392190290,1761246724347,-199.15,0.00019311,2]
[392190291,1761246724377,-398.3,0.00020231,2]
[392190292,1761246724406,-42.60077527,0.00020571,2]
[392190293,1761246724489,-6794.40893925,0.00020571,2]
[392190295,1761246730395,-1925.49951021,0.00020571,2]
[392190296,1761246730436,-300.0,0.00020778,2]
[392190297,1761246730486,-5549.01097958,0.00020779,2]
[392190298,1761246748758,-3213.49824515,0.00020779,2]
[392190299,1761246763395,-1200.0,0.00020972,2]
[392190300,1761246769938,5000.0,0.00020972,2]
[392190301,1761246782945,300.0,0.00020972,2]
[392190302,1761246787148,203.66,0.00019367,2]
[392190303,1761246787717,407.32,0.00020289,2]
[392190304,1761246791531,150.0,0.00017407,30]
[392190305,1761246791929,174.57,0.00018236,30]
[392190306,1761246792326,261.85,0.00019065,30]
[392190307,1761246792674,5000.0,0.00020973,2]
[392190308,1761246792755,349.13,0.00019893,30]
[392190309,1761246793187,436.42,0.00020722,30]
[392190310,1761246802991,162.3001708,0.00020873,2]
[392190311,1761246807651,2781.64783134,0.0002027,2]
[392190312,1761246807987,162.30017079,0.00020972,2]
[392190313,1761246814685,982.78182707,0.00020973,2]
[392190314,1761246814706,4017.21817293,0.00020973,2]
[392190315,1761246837558,5000.0,0.00020973,2]
[392190316,1761246844158,300.0,0.00020972,2]
[392190317,1761246860172,682.79182707,0.00020973,2]
[392190318,1761246860200,4317.20817293,0.00020973,2]
[392190319,1761246864074,178.42,0.00019393,2]
[392190320,1761246864502,356.85,0.00020317,2]
[392190321,1761246868241,150.0,0.00017456,30]
[392190322,1761246868674,152.93,0.00018287,30]
[392190323,1761246869072,229.4,0.00019118,30]
[392190324,1761246869496,305.87,0.00019949,30]
[392190325,1761246869916,382.34,0.00020781,30]
[392190326,1761246870753,-500.0,0.00020973,2]
[392190327,1761246870782,-500.0,0.00020973,2]
[392190328,1761246870813,-500.0,0.00020973,2]
[392190329,1761246870842,-500.0,0.00020973,2]
[392190330,1761246870868,-500.0,0.00020973,2]
[392190331,1761246870895,-500.0,0.00020973,2]
[392190332,1761246870922,-500.0,0.00020973,2]
[392190333,1761246882890,3000.01,0.00020988,2]
[392190334,1761246882916,1999.99,0.00020988,2]
[392190335,1761246900234,8000.02,0.00020988,2]
[392190336,1761246900257,10000.01,0.00020988,2]
[392190337,1761246900280,10000.01,0.00020988,2]
[392190338,1761246900302,10000.01,0.00020988,2]
[392190339,1761246900324,10000.01,0.00020988,2]
[392190340,1761246900345,1999.94,0.00020988,2]
[392190341,1761246902217,300.0,0.00020987,2]
[392190342,1761246902438,300.0,0.00020987,2]
[392190343,1761246902529,300.0,0.00020987,2]
[392190344,1761246903105,1200.0,0.00020987,2]
[392190345,1761246903181,300.0,0.00020987,2]
[392190346,1761246903252,300.0,0.00020987,2]
[392190347,1761246905914,5000.0,0.00020988,2]
[392190348,1761246928111,300.07,0.00020988,2]
[392190349,1761246928134,4699.93,0.00020988,2]
[392190350,1761246936721,5000.0,0.00020988,2]
[392190351,1761246942089,185.03,0.00019378,2]
[392190352,1761246942492,115.05,0.00020301,2]
[392190353,1761246942518,255.0,0.00020301,2]
[392190354,1761246946250,150.0,0.00017556,30]
[392190355,1761246946650,158.59,0.00018392,30]
[392190356,1761246947104,237.89,0.00019228,30]
[392190357,1761246947533,317.19,0.00020064,30]
[392190358,1761246947944,396.49,0.000209,30]
[392190359,1761246952474,5000.0,0.00020988,2]
[392190360,1761246960311,3935.11603818,0.00020988,2]
[392190361,1761246963365,300.0,0.00020987,2]
[392190362,1761246967068,-500.0,0.00020988,2]
[392190363,1761246967096,-396.2056909,0.00020988,2]
[392190364,1761246967125,-500.0,0.00020988,2]
[392190365,1761246967155,-454.21494886,0.00020988,2]
[392190366,1761246967186,-500.0,0.00020988,2]
[392190367,1761246967218,-500.0,0.00020988,2]
[392190368,1761246967248,-500.0,0.00020988,2]
[392190369,1761246967276,-648.97695645,0.00020988,2]
[392190370,1761246967305,-500.0,0.00020988,2]
[392190371,1761246967335,-500.0,0.00020988,2]
[392190372,1761246967515,-170.0947548,0.00020988,2]
[392190373,1761246967544,-546.06553176,0.00020988,2]
[392190374,1761246967573,-569.58524138,0.00020988,2]
[392190375,1761246967603,-500.0,0.00020988,2]
[392190376,1761246967634,-500.0,0.00020988,2]
[392190377,1761246967664,-500.0,0.00020988,2]
[392190378,1761246967693,-500.0,0.00020988,2]
[392190379,1761246967722,-500.0,0.00020988,2]
[392190380,1761246967753,-500.0,0.00020988,2]
[392190381,1761246967783,-500.0,0.00020988,2]
[392190382,1761246968059,-500.0,0.00020988,2]
[392190383,1761246968089,-500.0,0.00020988,2]
[392190384,1761246968119,-500.0,0.00020988,2]
[392190385,1761246968149,-296.13336506,0.00020988,2]
[392190386,1761246968181,-500.0,0.00020988,2]
[392190387,1761246968217,-500.0,0.00020988,2]
[392190388,1761246968247,-500.0,0.00020988,2]
[392190389,1761246968281,-644.24524034,0.00020988,2]
[392190390,1761246968311,-608.36665399,0.00020988,2]
[392190391,1761246968340,-243.3921352,0.00020988,2]
[392190392,1761246968410,-482.16787413,0.00020988,2]
[392190393,1761246968438,-500.0,0.00020989,2]
[392190394,1761246975458,5000.0,0.00020989,2]
[392190395,1761246982136,-224.00840681,0.00021071,2]
[392190396,1761246982167,-970.46378516,0.00021071,2]
[392190397,1761246984476,5000.0,0.00020989,2]
[392190398,1761246990670,1000.0,0.00021071,2]
[392190399,1761246991865,1000.0,0.00021071,2]
[392190400,1761246993141,611.06561606,0.00021071,2]
[392190401,1761246993164,388.93438394,0.00021071,2]
[392190402,1761246994521,1000.0,0.00021071,2]
[392190403,1761246995804,187.901296,0.00021071,2]
[392190404,1761247000197,5000.0,0.00021071,2]
[392190405,1761247007962,5000.0,0.00021148,2]
[392190406,1761247020361,0.01,0.00019336,2]
[392190407,1761247020384,223.53,0.00019336,2]
[392190408,1761247020777,447.09,0.00020257,2]
[392190409,1761247023141,5000.0,0.00021148,2]
[392190410,1761247024722,150.0,0.00012443,30]
[392190411,1761247025113,191.61,0.00013036,30]
[392190412,1761247025494,287.41,0.00013628,30]
[392190413,1761247025925,383.22,0.00014221,30]
[392190414,1761247025954,253.54101701,0.00016,2]
[392190415,1761247026310,479.02,0.00014814,30]
[392190416,1761247026798,574.83,0.00015406,30]
[392190417,1761247027105,670.63,0.00015999,30]
[392190418,1761247027545,766.44,0.00016591,30]
[392190419,1761247027951,572.68898299,0.00017184,30]
[392190420,1761247027976,289.55101701,0.00017184,30]
[392190421,1761247028354,903.83985758,0.00017776,30]
[392190422,1761247031548,200.01,0.00021148,2]
[392190423,1761247047272,5000.0,0.00021148,2]
[392190424,1761247070614,3606.60912541,0.00021148,2]
[392190425,1761247070635,1393.39087459,0.00021148,2]
[392190426,1761247083425,500.0,0.00020988,2]
[392190427,1761247083650,500.0,0.00020988,2]
[392190428,1761247084017,500.0,0.00020988,2]
[392190429,1761247093448,5000.0,0.00021148,2]
[392190430,1761247095817,150.0,0.00019302,2]
[392190431,1761247096813,299.71,0.00020221,2]
[392190432,1761247097330,449.56,0.0002114,2]
[392190433,1761247099382,1207.34912541,0.00020861,2]
[392190434,1761247099407,655.64286717,0.00020861,2]
[392190435,1761247100758,150.0,0.0001749,30]
[392190436,1761247101197,150.0,0.00018323,30]
[392190437,1761247101591,192.67,0.00019156,30]
[392190438,1761247101981,256.89,0.00019989,30]
[392190439,1761247102391,321.12,0.00020822,30]
[392190440,1761247116813,5000.0,0.00021148,2]
[392190441,1761247118588,-393.57931045,0.00021148,2]
[392190443,1761247139662,5000.0,0.00021216,2]
[392190444,1761247161862,4212.8513791,0.00021216,2]
[392190445,1761247161886,787.1486209,0.00021216,2]
[392190446,1761247174760,150.0,0.00019329,2]
[392190447,1761247175156,284.77,0.00020249,2]
[392190448,1761247175561,427.15,0.0002117,2]
[392190449,1761247175702,165.24058273,0.00020878,2]
[392190450,1761247178852,150.0,0.00017916,30]
[392190451,1761247179251,150.0,0.00018769,30]
[392190452,1761247179667,183.06,0.00019623,30]
[392190453,1761247180068,244.09,0.00020476,30]
[392190454,1761247184473,5000.0,0.00021216,2]
[392190455,1761247187538,169.3416505,0.00010342,2]
[392190459,1761247206565,204.22950362,0.00021216,2]
[392190460,1761247207960,2084.97964225,0.00021216,2]
[392190461,1761247207985,2915.02035775,0.00021216,2]
[392190462,1761247210269,151.0,0.00021216,2]
[392190463,1761247210893,151.0,0.00021216,2]
[392190464,1761247211609,151.0,0.00021216,2]
[392190465,1761247212232,151.0,0.00021216,2]
[392190466,1761247212307,250.0,0.00021216,2]
[392190467,1761247212905,151.0,0.00021216,2]
[392190468,1761247213086,250.0,0.00021216,2]
[392190469,1761247213557,151.0,0.00021216,2]
[392190470,1761247213602,250.0,0.00021216,2]
[392190471,1761247213887,-619.52201743,0.00021216,2]
[392190472,1761247213917,-185.86020114,0.00021216,2]
[392190473,1761247213947,-742.69736374,0.00021216,2]
[392190474,1761247213976,-1862.99199258,0.00021318,2]
[392190475,1761247214204,151.0,0.00021216,2]
[392190476,1761247214239,250.0,0.00021216,2]
[392190477,1761247214845,151.0,0.00021216,2]
[392190478,1761247214933,320.66427885,0.00021216,2]
[392190479,1761247215486,151.0,0.00021216,2]
[392190480,1761247215824,299.77827851,0.00021216,2]
[392190481,1761247216170,151.0,0.00021216,2]
[392190482,1761247216236,151.0,0.00021216,2]
[392190483,1761247216795,151.7608067,0.00021216,2]
[392190484,1761247216875,151.0,0.00021216,2]
[392190485,1761247217571,189.72641855,0.00021216,2]
[392190486,1761247218428,1000.0,0.00021216,2]
[392190487,1761247219085,59.93706761,0.00021216,2]
[392190488,1761247219108,940.06293239,0.00021216,2]
[392190489,1761247219783,888.15731838,0.00021216,2]
[392190490,1761247229028,-305.11,0.00021329,30]
[392190491,1761247231158,5000.0,0.00021318,2]
[392190492,1761247244022,-1200.0,0.00021438,2]
[392190493,1761247251602,150.0,0.00019328,2]
[392190494,1761247251996,236.55,0.00020249,2]
[392190495,1761247252913,354.83,0.00021169,2]
[392190496,1761247254051,5000.0,0.00021438,2]
[392190497,1761247257240,150.0,0.00017848,30]
[392190498,1761247257408,150.0,0.00018698,30]
[392190499,1761247257810,152.07,0.00019548,30]
[392190500,1761247258208,202.76,0.00020398,30]
[392190501,1761247258631,253.45,0.00021248,30]
[392190502,1761247274264,-1733.5148549,0.00021599,2]
[392190503,1761247276417,4961.92293506,0.00021599,2]
[392190504,1761247329843,150.0,0.00019384,2]
[392190505,1761247330251,194.56,0.00020307,2]
[392190506,1761247330647,291.84,0.0002123,2]
[392190507,1761247333965,150.0,0.00017434,30]
[392190508,1761247334348,150.0,0.00018264,30]
[392190509,1761247334749,150.0,0.00019094,30]
[392190510,1761247335161,166.77,0.00019924,30]
[392190511,1761247335561,208.46,0.00020754,30]
[392190512,1761247335993,250.15,0.00021585,30]
[392190556,1761247406634,150.0,0.00019526,2]
[392190557,1761247407042,150.99,0.00020455,2]
[392190558,1761247407487,226.48,0.00021385,2]
[392190559,1761247410777,150.0,0.00017418,30]
[392190560,1761247411203,150.0,0.00018248,30]
[392190561,1761247411648,150.0,0.00019077,30]
[392190562,1761247412054,150.0,0.00019907,30]
[392190563,1761247412476,161.77,0.00020736,30]
[392190564,1761247412869,194.13,0.00021565,30]
[392190565,1761247419390,203.7926754,0.00020693,2]
[392190569,1761247482394,150.0,0.00019437,2]
[392190570,1761247482785,150.0,0.00020362,2]
[392190571,1761247483218,169.84,0.00021288,2]
[392190572,1761247484754,1024.287667,0.00013699,2]
[392190573,1761247484991,1024.287667,0.00020187,2]
[392190574,1761247486477,150.0,0.00017822,30]
[392190575,1761247486896,150.0,0.00018671,30]
[392190576,1761247487300,150.0,0.00019519,30]
[392190577,1761247487702,150.0,0.00020368,30]
[392190578,1761247488107,150.0,0.00021217,30]
[392190580,1761247507252,1516.82549802,0.00021654,2]
[392190586,1761247556761,150.0,0.00019315,2]
[392190587,1761247557159,150.0,0.00020235,2]
[392190588,1761247558062,150.0,0.00021155,2]
[392190589,1761247558301,-300.0,0.00021671,2]
[392190590,1761247558329,-300.0,0.00021671,2]
[392190591,1761247558358,-300.0,0.00021671,2]
[392190592,1761247558387,-300.0,0.00021671,2]
[392190593,1761247558538,-300.0,0.00021671,2]
[392190594,1761247558567,-385.70772424,0.00021672,2]
[392190595,1761247558597,-500.0,0.00021672,2]
[392190596,1761247558625,-1200.0,0.00021672,2]
[392190597,1761247558652,-500.0,0.00021673,2]
[392190598,1761247558681,-500.0,0.00021673,2]
[392190599,1761247558710,-328.59455152,0.00021673,2]
[392190600,1761247558948,-171.40544848,0.00021673,2]
[392190601,1761247558976,-500.0,0.00021673,2]
[392190602,1761247559003,-163.82552232,0.00021673,2]
[392190603,1761247559032,-500.0,0.00021673,2]
[392190604,1761247559061,-500.0,0.00021673,2]
[392190605,1761247559090,-502.63250073,0.00021673,2]
[392190606,1761247559119,-500.0,0.00021673,2]
[392190607,1761247559148,-804.61344235,0.00021673,2]
[392190608,1761247559176,-234.28532605,0.00021695,2]
[392190609,1761247559206,-500.0,0.00021695,2]
[392190610,1761247559236,-500.0,0.00021695,2]
[392190611,1761247559263,-72.08715999,0.00021695,2]
[392190612,1761247559532,-102.31120016,0.00021695,2]
[392190613,1761247559564,-500.0,0.00021695,2]
[392190614,1761247559593,-500.0,0.00021695,2]
[392190615,1761247559623,-500.0,0.00021695,2]
[392190616,1761247559653,-500.0,0.00021695,2]
[392190617,1761247559684,-473.48653652,0.00021695,2]
[392190618,1761247559713,-500.0,0.00021695,2]
[392190619,1761247559741,-500.0,0.00021695,2]
[392190620,1761247559771,-500.0,0.00021695,2]
[392190621,1761247559801,-500.0,0.00021695,2]
[392190622,1761247559831,-348.41452664,0.00021695,2]
[392190623,1761247561253,-151.58547336,0.00021695,2]
[392190624,1761247561285,-196.54780205,0.00021695,2]
[392190625,1761247561317,-500.0,0.00021695,2]
[392190626,1761247561349,-500.0,0.00021695,2]
[392190627,1761247561380,-500.0,0.00021695,2]
[392190628,1761247561411,-500.0,0.00021695,2]
[392190629,1761247561443,-500.0,0.00021695,2]
[392190630,1761247561473,-500.0,0.00021695,2]
[392190631,1761247561501,-425.85665779,0.00021699,2]
[392190632,1761247561533,-170.37449464,0.00021699,2]
[392190633,1761247561563,-500.0,0.00021699,2]
[392190634,1761247561594,-500.0,0.00021699,2]
[392190635,1761247561878,-500.0,0.00021699,2]
[392190636,1761247561907,-151.0,0.00021699,2]
[392190637,1761247561936,-292.0,0.00021699,2]
[392190638,1761247561965,-292.35119698,0.00021699,2]
[392190639,1761247561994,-245.0,0.00021699,2]
[392190640,1761247562027,-500.0,0.00021699,2]
[392190641,1761247562112,150.0,0.00017508,30]
[392190642,1761247562540,150.0,0.00018342,30]
[392190643,1761247562979,150.0,0.00019176,30]
[392190644,1761247563046,150.0,0.00020009,30]
[392190645,1761247563130,150.0,0.00020843,30]
[392190646,1761247576389,-587.86758654,0.00021695,2]
[392190647,1761247576419,-500.0,0.00021695,2]
[392190648,1761247576451,-500.0,0.00021695,2]
[392190649,1761247576483,-553.46119795,0.00021695,2]
[392190650,1761247576513,-500.0,0.00021695,2]
[392190651,1761247576543,-500.0,0.00021695,2]
[392190652,1761247576570,-500.0,0.00021695,2]
[392190653,1761247576601,-500.0,0.00021695,2]
[392190654,1761247576631,-500.0,0.00021695,2]
[392190655,1761247576659,-217.35243102,0.00021695,2]
[392190657,1761247582289,-1759.98527834,0.00021478,2]
[392190658,1761247582319,-282.64756898,0.00021695,2]
[392190659,1761247582348,-500.0,0.00021695,2]
[392190660,1761247582379,-500.0,0.00021695,2]
[392190661,1761247582415,-500.0,0.00021695,2]
[392190662,1761247582446,-500.0,0.00021695,2]
[392190663,1761247588407,-226.86273077,0.00021595,2]
[392190664,1761247609487,-5000.0,0.00021482,2]
[392190665,1761247630221,150.0,0.00019317,2]
[392190666,1761247630615,150.0,0.00020236,2]
[392190667,1761247631030,150.0,0.00021156,2]
[392190668,1761247634264,150.0,0.00017735,30]
[392190669,1761247640742,-4799.99,0.00021481,2]
[392190670,1761247673794,-489.545985,0.0002156,5]
[392190716,1761247701265,150.0,0.00019352,2]
[392190717,1761247701757,150.0,0.00020274,2]
[392190718,1761247702102,150.0,0.00021195,2]
[392190721,1761247715630,3227.03960498,0.00019,2]
[392190722,1761247720792,3203.8412388,0.0002,2]
[392190729,1761247769992,150.0,0.00019346,2]
[392190730,1761247770414,150.0,0.00020267,2]
[392190731,1761247770839,150.0,0.00021189,2]
[392190772,1761247821609,417.15472785,0.000301,120]
[392190853,1761247832332,-1327.22231075,0.00021654,2]
[392190855,1761247832342,-298.09966045,0.00021698,2]
[392190864,1761247832471,-462.0,0.00021698,2]
[392190865,1761247832482,-300.0,0.00021698,2]
[392190866,1761247832491,-7284.02987843,0.00021699,2]
[392190867,1761247832501,-272434.59540721,0.00021699,2]
[392190868,1761247836449,150.0,0.00019471,2]
[392190869,1761247836914,150.0,0.00020398,2]
[392190985,1761247843100,-12.44095849,0.00021326,2]
[392190986,1761247843112,-137.55904151,0.00021326,2]
[392190987,1761247843122,-500.73320181,0.00021689,10]
[392190988,1761247843134,-1625.51679819,0.00021689,10]
[392190989,1761247843143,-317.72843976,0.00021698,2]
[392190990,1761247843153,-3.73627377,0.00021698,2]
[392190991,1761247845318,6040.58730911,0.000301,120]
[392191009,1761247856562,173.736494,0.00020693,2]
[392191017,1761248012341,993.2280263,0.00020658,2]
[392191022,1761248284610,167.85,0.00015135,2]
[392191023,1761248284895,167.85,0.00015135,2]
[392191024,1761248285197,167.83,0.00015135,2]
[392191025,1761248347687,1409.13622195,0.00021179,2]
[392191026,1761248380590,666.0,0.00020586,2]
[392191059,1761248479575,202.7543074,0.00020612,2]
[392191120,1761249032122,-198.74335244,0.00021329,2]
[392191121,1761249032131,-199.05405469,0.00021354,2]
[392191122,1761249032174,-197.63878384,0.00021354,2]